bitfinex/quotes_SOLUSD_20241222
["timestamp","ask_amount","ask_price","bid_price","bid_amount"]
[1734889200260,1.37068987,182.61,182.55,27.48867907]
[1734889200422,1.37068987,182.61,182.55,1.5283]
[1734889200627,1.37068987,182.6,182.55,1.5283]
[1734889201128,1.37068987,182.59,182.55,1.5283]
[1734889201329,1.37068987,182.59,182.55,27.48867907]
[1734889201752,1.37068987,182.58,182.55,27.48867907]
[1734889202159,1.37068987,182.58,182.56,25.96037907]
[1734889202363,20.0,182.66,182.57,25.96037907]
[1734889203962,23.776884,182.65,182.55,27.48867907]
[1734889204159,23.776884,182.61,182.53,6.0409]
[1734889207588,23.776884,182.61,182.51,1.5133]
[1734889207793,23.776884,182.57,182.49,6.5334]
[1734889208163,23.776884,182.57,182.47,27.47367907]
[1734889209369,23.776884,182.53,182.45,6.5334]
[1734889209583,23.776884,182.53,182.42,27.47367907]
[1734889209778,20.0,182.5,182.42,27.47367907]
[1734889210383,23.776884,182.53,182.4,25.96037907]
[1734889210384,20.0,182.49,182.4,25.96037907]
[1734889210583,23.776884,182.48,182.39,26.64727217]
[1734889210782,23.776884,182.48,182.39,0.6868931]
[1734889211794,20.0,182.45,182.39,0.6868931]
[1734889211995,23.776884,182.44,182.39,0.6868931]
[1734889215382,20.0,182.41,182.39,0.6868931]
[1734889216215,23.776884,182.4,182.39,0.6868931]
[1734889217506,32.3309,182.47,182.39,0.6868931]
[1734889217687,20.0,182.43,182.39,0.6868931]
[1734889218085,23.776884,182.46,182.39,0.6868931]
[1734889219208,23.776884,182.47,182.39,0.6868931]
[1734889220592,20.0,182.44,182.39,0.6868931]
[1734889222706,23.776884,182.43,182.39,0.6868931]
[1734889226814,0.9153,182.48,182.39,0.6868931]
[1734889226994,12.3289,182.5,182.39,26.64727217]
[1734889227186,12.3289,182.5,182.39,0.6868931]
[1734889228005,23.776884,182.49,182.39,26.64727217]
[1734889228511,23.776884,182.49,182.39,0.6868931]
[1734889228716,20.0,182.46,182.39,0.6868931]
[1734889229293,20.0,182.46,182.39,26.64727217]
[1734889229500,20.0,182.46,182.39,0.6868931]
[1734889230386,20.0,182.46,182.39,26.64727217]
[1734889230701,12.327,182.53,182.42,25.96037907]
[1734889231412,12.327,182.53,182.39,0.6868931]
[1734889231712,12.327,182.53,182.4,25.96037907]
[1734889232298,20.0,182.49,182.4,25.96037907]
[1734889232793,23.776884,182.48,182.4,25.96037907]
[1734889236313,23.776884,182.48,182.39,26.64727217]
[1734889236503,23.776884,182.48,182.39,0.6868931]
[1734889238016,23.776884,182.48,182.39,26.64727217]
[1734889238223,23.776884,182.48,182.4,25.96037907]
[1734889238515,23.776884,182.48,182.41,25.96037907]
[1734889239020,23.776884,182.48,182.4,25.96037907]
[1734889239397,20.0,182.49,182.42,25.96037907]
[1734889239586,23.776884,182.5,182.42,25.96037907]
[1734889239992,23.776884,182.5,182.4,25.96037907]
[1734889240914,20.0,182.47,182.39,26.64727217]
[1734889241107,23.776884,182.46,182.39,26.64727217]
[1734889241419,23.776884,182.46,182.39,0.6868931]
[1734889244317,23.776884,182.46,182.39,16.93502452]
[1734889245103,20.0,182.47,182.4,16.24813142]
[1734889245324,20.0,182.49,182.41,16.24813142]
[1734889245604,23.776884,182.48,182.41,16.24813142]
[1734889246116,20.0,182.52,182.43,16.24813142]
[1734889246296,20.0,182.52,182.42,16.24813142]
[1734889246623,20.0,182.52,182.41,16.24813142]
[1734889247103,20.0,182.52,182.42,16.24813142]
[1734889247518,20.0,182.52,182.41,16.24813142]
[1734889248109,23.776884,182.51,182.4,16.24813142]
[1734889248311,23.776884,182.52,182.39,16.93502452]
[1734889248699,23.776884,182.48,182.39,16.93502452]
[1734889249225,32.3271,182.53,182.41,16.24813142]
[1734889249719,23.776884,182.48,182.4,16.24813142]
[1734889249909,23.776884,182.52,182.42,16.24813142]
[1734889250117,23.776884,182.52,182.43,16.24813142]
[1734889252215,23.776884,182.52,182.43,25.9837906]
[1734889252404,23.776884,182.52,182.44,25.9837906]
[1734889252912,20.0,182.53,182.44,25.9837906]
[1734889254241,23.776884,182.52,182.44,25.9837906]
[1734889257135,23.776884,182.52,182.43,25.9837906]
[1734889257538,23.776884,182.52,182.41,13.705]
[1734889257539,23.776884,182.52,182.42,25.9837906]
[1734889257738,23.776884,182.52,182.41,45.9837906]
[1734889258132,20.0,182.49,182.41,25.9837906]
[1734889259571,23.776884,182.53,182.41,25.9837906]
[1734889259735,23.776884,182.49,182.41,25.9837906]
[1734889260152,23.776884,182.49,182.42,25.9837906]
[1734889262396,20.0,182.51,182.44,25.9837906]
[1734889262563,20.0,182.54,182.43,25.9837906]
[1734889262766,23.776884,182.53,182.43,25.9837906]
[1734889263069,20.0,182.5,182.42,25.9837906]
[1734889263883,20.0,182.5,182.43,25.9837906]
[1734889264591,20.0,182.5,182.42,25.9837906]
[1734889264893,23.776884,182.54,182.42,25.9837906]
[1734889265194,23.776884,182.5,182.41,25.9837906]
[1734889265569,23.776884,182.5,182.4,13.7058]
[1734889265570,23.776884,182.5,182.39,26.6706837]
[1734889265773,23.776884,182.48,182.39,0.6868931]
[1734889266084,23.776884,182.48,182.39,26.6706837]
[1734889266383,20.0,182.5,182.41,25.9837906]
[1734889266571,20.0,182.5,182.43,25.9837906]
[1734889266770,0.9153,182.53,182.43,25.9837906]
[1734889267078,0.9153,182.53,182.46,25.9837906]
[1734889267475,0.9153,182.53,182.45,25.9837906]
[1734889267788,4.6569,182.57,182.46,25.9837906]
[1734889267989,4.6569,182.57,182.47,25.9837906]
[1734889270177,23.776884,182.56,182.47,25.9837906]
[1734889270997,23.776884,182.56,182.46,25.9837906]
[1734889271670,23.776884,182.56,182.45,25.9837906]
[1734889272389,23.776884,182.56,182.46,25.9837906]
[1734889272689,23.776884,182.56,182.47,25.9837906]
[1734889273491,0.9153,182.58,182.5,25.9837906]
[1734889273671,0.9153,182.58,182.51,25.9837906]
[1734889273991,0.9153,182.58,182.5,25.9837906]
[1734889274165,0.9153,182.58,182.5,16.22656868]
[1734889274772,20.9153,182.58,182.5,16.22656868]
[1734889274992,20.9153,182.58,182.51,16.22656868]
[1734889275189,20.0,182.6,182.54,16.22656868]
[1734889275392,0.9153,182.63,182.54,16.22656868]
[1734889275574,0.9153,182.63,182.53,16.22656868]
[1734889276513,23.776884,182.62,182.53,16.22656868]
[1734889277111,23.776884,182.62,182.52,16.22656868]
[1734889277318,20.0,182.59,182.51,16.22656868]
[1734889277517,23.776884,182.58,182.5,16.22656868]
[1734889277919,23.776884,182.58,182.49,16.22656868]
[1734889278123,23.776884,182.58,182.48,16.22656868]
[1734889278281,20.0,182.55,182.47,16.22656868]
[1734889279205,20.0,182.55,182.48,16.22656868]
[1734889279501,20.0,182.55,182.46,6.2761]
[1734889279705,20.0,182.59,182.51,16.22656868]
[1734889279901,20.0,182.58,182.51,16.22656868]
[1734889280100,23.776884,182.61,182.51,16.22656868]
[1734889281109,23.776884,182.61,182.5,16.22656868]
[1734889281483,85.64173872,182.63,182.46,19.9772]
[1734889281484,0.9153,182.63,182.57,16.22656868]
[1734889282007,0.9153,182.63,182.58,16.22656868]
[1734889282216,0.9153,182.63,182.58,25.9409252]
[1734889282389,4.6569,182.67,182.59,25.9409252]
[1734889282994,4.6569,182.67,182.6,25.9409252]
[1734889284019,0.9153,182.68,182.61,25.9409252]
[1734889285394,20.9153,182.68,182.6,25.9409252]
[1734889285593,23.776884,182.67,182.58,25.9409252]
[1734889285805,20.0,182.64,182.57,25.9409252]
[1734889285998,23.776884,182.67,182.58,25.9409252]
[1734889286200,20.0,182.64,182.58,25.9409252]
[1734889288910,20.0,182.64,182.59,25.9409252]
[1734889289213,0.9153,182.68,182.6,25.9409252]
[1734889289214,20.9153,182.68,182.6,25.9409252]
[1734889289416,20.9153,182.68,182.61,25.9409252]
[1734889290213,20.9153,182.68,182.58,20.0]
[1734889290423,23.776884,182.67,182.59,25.9409252]
[1734889290803,23.776884,182.67,182.6,25.9409252]
[1734889291922,23.776884,182.67,182.59,25.9409252]
[1734889292107,20.0,182.67,182.6,25.9409252]
[1734889294424,23.776884,182.66,182.58,25.9409252]
[1734889294613,23.776884,182.66,182.54,7.09746991]
[1734889294614,23.776884,182.66,182.56,25.9409252]
[1734889294919,23.776884,182.66,182.54,6.2761]
[1734889294920,20.0,182.63,182.54,25.9409252]
[1734889295225,23.776884,182.62,182.53,27.4963252]
[1734889295626,23.776884,182.62,182.54,25.9409252]
[1734889296002,23.776884,182.62,182.55,25.9409252]
[1734889297221,23.776884,182.62,182.54,25.9409252]
[1734889297401,20.0,182.63,182.55,25.9409252]
[1734889297600,20.0,182.63,182.54,25.9409252]
[1734889298425,20.0,182.63,182.55,25.9409252]
[1734889298639,20.0,182.63,182.54,25.9409252]
[1734889300050,20.0,182.63,182.55,25.9409252]
[1734889300349,20.0,182.65,182.55,25.9409252]
[1734889301841,20.0,182.61,182.55,25.9409252]
[1734889302137,20.0,182.61,182.55,16.21827746]
[1734889302347,20.0,182.61,182.53,1.5554]
[1734889302348,20.0,182.67,182.57,16.21827746]
[1734889302847,0.9153,182.68,182.57,16.21827746]
[1734889303758,0.9153,182.68,182.58,16.21827746]
[1734889303918,0.9153,182.68,182.59,16.21827746]
[1734889304118,20.9153,182.68,182.59,16.21827746]
[1734889308360,23.776884,182.67,182.57,16.21827746]
[1734889308730,23.776884,182.67,182.56,29.91197746]
[1734889309139,23.776884,182.67,182.57,16.21827746]
[1734889312068,23.776884,182.67,182.58,16.21827746]
[1734889312941,23.776884,182.67,182.56,13.6937]
[1734889312942,20.9153,182.68,182.61,16.21827746]
[1734889313372,20.9153,182.68,182.6,16.21827746]
[1734889315368,20.9153,182.68,182.59,16.21827746]
[1734889315880,23.776884,182.67,182.57,29.91137746]
[1734889316465,23.776884,182.67,182.58,16.21827746]
[1734889318174,23.776884,182.67,182.57,16.21827746]
[1734889318355,23.776884,182.67,182.56,16.21827746]
[1734889318671,20.0,182.64,182.55,16.21827746]
[1734889319267,20.0,182.64,182.56,16.21827746]
[1734889319456,23.776884,182.63,182.55,16.21827746]
[1734889319651,23.776884,182.63,182.53,1.5554]
[1734889319652,23.776884,182.63,182.54,16.21827746]
[1734889320665,23.776884,182.63,182.55,16.21827746]
[1734889320839,23.776884,182.63,182.54,16.21827746]
[1734889321041,23.776884,182.63,182.53,16.21827746]
[1734889321256,23.776884,182.63,182.54,16.21827746]
[1734889321652,24.6569,182.64,182.55,16.21827746]
[1734889321849,24.6569,182.64,182.56,16.21827746]
[1734889322054,24.6569,182.64,182.55,16.21827746]
[1734889322578,23.776884,182.63,182.54,16.21827746]
[1734889322750,23.776884,182.63,182.53,16.21827746]
[1734889323152,20.0,182.6,182.53,16.21827746]
[1734889324284,23.776884,182.63,182.54,16.21827746]
[1734889325076,20.0,182.63,182.56,16.21827746]
[1734889325682,24.6569,182.64,182.56,16.21827746]
[1734889327457,24.6569,182.64,182.54,16.21827746]
[1734889327658,24.6569,182.64,182.55,16.21827746]
[1734889328157,24.6569,182.64,182.56,16.21827746]
[1734889332281,24.6569,182.64,182.55,16.21827746]
[1734889333154,23.776884,182.63,182.53,16.21827746]
[1734889333893,23.776884,182.63,182.52,13.6964]
[1734889333894,20.0,182.6,182.52,29.91467746]
[1734889334181,20.0,182.6,182.52,16.21827746]
[1734889336380,20.0,182.56,182.45,6.2588]
[1734889336583,20.0,182.56,182.47,16.21827746]
[1734889337064,23.776884,182.55,182.47,16.21827746]
[1734889338777,23.776884,182.55,182.48,16.21827746]
[1734889339173,23.776884,182.55,182.47,16.21827746]
[1734889339664,23.776884,182.55,182.45,6.2588]
[1734889339665,23.776884,182.55,182.46,16.21827746]
[1734889340078,23.776884,182.55,182.47,16.21827746]
[1734889343199,20.0,182.56,182.49,16.21827746]
[1734889343521,20.0,182.58,182.51,16.21827746]
[1734889343787,0.9153,182.61,182.51,16.21827746]
[1734889344357,0.9153,182.61,182.52,16.21827746]
[1734889345690,23.776884,182.6,182.52,16.21827746]
[1734889347590,0.9153,182.61,182.56,16.21827746]
[1734889348273,0.9153,182.61,182.55,16.21827746]
[1734889348915,0.9153,182.61,182.56,16.21827746]
[1734889349092,0.9153,182.61,182.55,16.21827746]
[1734889350814,0.9153,182.61,182.54,16.21827746]
[1734889351804,0.9153,182.61,182.52,16.21827746]
[1734889351996,23.776884,182.6,182.5,29.91657746]
[1734889352888,23.776884,182.56,182.47,16.21827746]
[1734889354211,23.776884,182.56,182.48,16.21827746]
[1734889355297,20.0,182.57,182.54,16.21827746]
[1734889355497,33.40670103,182.67,182.56,16.21827746]
[1734889355895,16.33520669,182.67,182.56,16.21827746]
[1734889356322,4.11261125,182.67,182.56,16.21827746]
[1734889356527,0.9153,182.68,182.56,16.21827746]
[1734889356714,23.776884,182.66,182.57,16.21827746]
[1734889356914,23.776884,182.67,182.57,16.21827746]
[1734889358214,20.0,182.64,182.57,25.94252144]
[1734889358905,20.0,182.64,182.56,25.94252144]
[1734889360929,20.0,182.64,182.54,15.2172]
[1734889360930,23.776884,182.63,182.54,39.63762144]
[1734889364535,23.776884,182.63,182.53,25.94252144]
[1734889364837,23.776884,182.63,182.52,25.94252144]
[1734889365020,23.776884,182.63,182.53,25.94252144]
[1734889367044,23.776884,182.63,182.54,25.94252144]
[1734889368338,23.776884,182.63,182.51,13.6976]
[1734889368339,20.0,182.63,182.55,25.94252144]
[1734889368922,24.6569,182.64,182.55,25.94252144]
[1734889369133,4.6569,182.64,182.54,25.94252144]
[1734889369740,23.776884,182.63,182.54,25.94252144]
[1734889371448,23.776884,182.63,182.55,25.94252144]
[1734889373643,23.776884,182.63,182.54,25.94252144]
[1734889375546,0.9153,182.62,182.54,25.94252144]
[1734889378151,0.9153,182.62,182.54,16.21956522]
[1734889381059,23.776884,182.59,182.49,22.48926522]
[1734889381232,23.776884,182.59,182.49,16.21956522]
[1734889381430,20.0,182.56,182.48,16.21956522]
[1734889381948,20.0,182.56,182.49,16.21956522]
[1734889382250,20.0,182.57,182.47,13.7005]
[1734889382459,20.0,182.57,182.48,16.21956522]
[1734889383329,20.0,182.57,182.49,16.21956522]
[1734889383558,20.0,182.57,182.5,16.21956522]
[1734889385960,20.0,182.57,182.51,16.21956522]
[1734889386187,23.776884,182.61,182.53,16.21956522]
[1734889386677,0.9153,182.62,182.53,16.21956522]
[1734889387389,20.0,182.61,182.53,16.21956522]
[1734889388085,20.0,182.61,182.56,16.21956522]
[1734889388381,5.02865928,182.66,182.6,16.21956522]
[1734889388568,4.11335928,182.66,182.63,16.21956522]
[1734889389179,8.53574717,182.69,182.63,16.21956522]
[1734889389393,0.9153,182.71,182.63,16.21956522]
[1734889389597,0.9153,182.71,182.57,0.82116491]
[1734889389896,0.9153,182.71,182.65,16.21956522]
[1734889392184,0.9153,182.71,182.65,25.92195412]
[1734889394114,0.9153,182.71,182.63,25.92195412]
[1734889394310,20.0,182.7,182.62,25.92195412]
[1734889395206,23.776884,182.69,182.6,25.92195412]
[1734889395505,20.0,182.7,182.61,25.92195412]
[1734889395706,20.0,182.7,182.62,25.92195412]
[1734889396210,20.0,182.7,182.61,25.92195412]
[1734889396510,20.0,182.69,182.61,25.92195412]
[1734889396691,20.0,182.7,182.62,25.92195412]
[1734889402445,4.6569,182.73,182.64,25.92195412]
[1734889402606,20.0,182.75,182.66,25.92195412]
[1734889403007,0.9153,182.76,182.66,25.92195412]
[1734889403542,0.9153,182.76,182.67,25.92195412]
[1734889403836,0.9153,182.76,182.68,25.92195412]
[1734889404225,0.9153,182.76,182.69,25.92195412]
[1734889405938,0.9153,182.76,182.68,25.92195412]
[1734889406342,20.0,182.75,182.68,25.92195412]
[1734889407046,20.0,182.75,182.67,25.92195412]
[1734889407249,0.9153,182.76,182.67,25.92195412]
[1734889407633,20.0,182.75,182.67,25.92195412]
[1734889412156,20.0,182.75,182.67,16.19650924]
[1734889412476,24.6569,182.78,182.69,16.19650924]
[1734889412653,20.0,182.77,182.71,16.19650924]
[1734889412955,0.9153,182.8,182.72,16.19650924]
[1734889413865,0.9153,182.8,182.71,16.19650924]
[1734889414169,20.9153,182.8,182.71,16.19650924]
[1734889414666,20.9153,182.8,182.72,16.19650924]
[1734889416682,20.9153,182.8,182.73,16.19650924]
[1734889417485,20.9153,182.8,182.74,16.19650924]
[1734889417673,20.0,182.81,182.74,16.19650924]
[1734889417864,4.6569,182.83,182.75,16.19650924]
[1734889418550,4.6569,182.83,182.74,16.19650924]
[1734889418779,4.6569,182.83,182.73,16.19650924]
[1734889419189,20.0,182.81,182.74,16.19650924]
[1734889419670,20.0,182.79,182.72,16.19650924]
[1734889423064,23.776884,182.81,182.72,16.19650924]
[1734889423794,23.776884,182.81,182.73,16.19650924]
[1734889423986,20.0,182.79,182.74,16.19650924]
[1734889424494,4.6569,182.83,182.74,16.19650924]
[1734889424667,4.6569,182.83,182.73,16.19650924]
[1734889424668,20.0,182.81,182.73,16.19650924]
[1734889425375,20.0,182.8,182.72,16.19650924]
[1734889427200,23.776884,182.79,182.7,16.19650924]
[1734889427518,23.776884,182.79,182.69,36.19650924]
[1734889427999,23.776884,182.79,182.7,16.19650924]
[1734889430999,23.776884,182.79,182.69,16.19650924]
[1734889431528,23.776884,182.79,182.7,16.19650924]
[1734889432421,23.776884,182.79,182.69,16.19650924]
[1734889434031,23.776884,182.79,182.7,16.19650924]
[1734889435929,23.776884,182.79,182.69,16.19650924]
[1734889436118,23.776884,182.79,182.65,24.59771423]
[1734889436119,23.776884,182.75,182.65,16.19650924]
[1734889436319,20.0,182.72,182.63,16.19650924]
[1734889436629,24.692184,182.71,182.61,16.19650924]
[1734889437316,24.692184,182.71,182.6,16.19650924]
[1734889438729,20.0,182.68,182.6,16.19650924]
[1734889438932,20.0,182.68,182.61,16.19650924]
[1734889440307,0.9153,182.71,182.63,16.19650924]
[1734889440507,23.776884,182.7,182.6,16.19650924]
[1734889441241,36.092084,182.7,182.59,16.19650924]
[1734889441424,20.0,182.67,182.58,16.19650924]
[1734889441811,20.0,182.67,182.59,16.19650924]
[1734889442009,20.0,182.67,182.6,16.19650924]
[1734889442532,20.0,182.67,182.61,16.19650924]
[1734889445034,20.0,182.67,182.6,16.19650924]
[1734889448046,20.0,182.67,182.61,16.19650924]
[1734889451353,23.776884,182.66,182.58,16.19650924]
[1734889451554,23.776884,182.66,182.57,16.19650924]
[1734889452036,23.776884,182.66,182.58,16.19650924]
[1734889452528,20.0,182.66,182.58,16.19650924]
[1734889455552,20.0,182.66,182.59,16.19650924]
[1734889456758,20.0,182.68,182.61,16.19650924]
[1734889459764,0.9153,182.71,182.62,16.19650924]
[1734889459936,0.9153,182.71,182.65,16.19650924]
[1734889460439,0.9153,182.71,182.63,16.19650924]
[1734889461761,20.0,182.7,182.6,8.0613]
[1734889462067,20.0,182.7,182.63,16.19650924]
[1734889464666,20.0,182.7,182.61,16.19650924]
[1734889464839,0.9153,182.71,182.61,16.19650924]
[1734889465039,43.776884,182.7,182.61,16.19650924]
[1734889465360,20.0,182.7,182.62,16.19650924]
[1734889465765,20.0,182.7,182.61,16.19650924]
[1734889468365,0.9153,182.71,182.61,16.19650924]
[1734889468773,20.0,182.7,182.61,16.19650924]
[1734889468980,20.0,182.7,182.62,16.19650924]
[1734889474691,23.776884,182.69,182.58,16.19650924]
[1734889474889,20.0,182.66,182.57,29.88930924]
[1734889475256,20.0,182.66,182.58,16.19650924]
[1734889476176,23.776884,182.69,182.59,16.19650924]
[1734889480872,23.776884,182.69,182.6,16.19650924]
[1734889481459,5.02678736,182.71,182.59,13.6916]
[1734889481665,5.02678736,182.71,182.62,16.19650924]
[1734889482984,0.9153,182.71,182.64,16.19650924]
[1734889483684,0.9153,182.71,182.65,16.19650924]
[1734889484067,4.6569,182.73,182.65,16.19650924]
[1734889484263,0.9153,182.76,182.65,16.19650924]
[1734889484482,0.9153,182.76,182.67,16.19650924]
[1734889484681,0.9153,182.76,182.68,16.19650924]
[1734889486680,0.9153,182.76,182.67,16.19650924]
[1734889487785,0.9153,182.76,182.66,16.19650924]
[1734889488086,20.0,182.74,182.64,16.19650924]
[1734889488278,20.0,182.73,182.63,16.19650924]
[1734889488693,23.776884,182.72,182.62,16.19650924]
[1734889488885,23.776884,182.72,182.61,16.19650924]
[1734889489189,20.0,182.69,182.61,16.19650924]
[1734889489695,20.9153,182.69,182.61,16.19650924]
[1734889493298,20.9153,182.69,182.58,15.2391]
[1734889493989,23.776884,182.68,182.59,16.19650924]
[1734889494313,23.776884,182.68,182.58,16.19650924]
[1734889496002,20.0,182.67,182.6,16.19650924]
[1734889498378,20.0,182.67,182.59,16.19650924]
[1734889498706,23.776884,182.66,182.55,16.19650924]
[1734889499101,23.776884,182.66,182.54,7.751]
[1734889499279,23.776884,182.66,182.55,16.19650924]
[1734889499470,23.776884,182.66,182.56,16.19650924]
[1734889500901,23.776884,182.66,182.57,16.19650924]
[1734889507616,20.0,182.63,182.57,16.19650924]
[1734889507809,0.9153,182.62,182.51,6.1269]
[1734889508001,0.9153,182.62,182.52,16.19650924]
[1734889508324,23.776884,182.61,182.52,16.19650924]
[1734889508706,23.776884,182.61,182.53,16.19650924]
[1734889510157,0.9153,182.62,182.56,16.19650924]
[1734889510323,0.9153,182.62,182.53,13.6959]
[1734889510324,20.0,182.65,182.58,16.19650924]
[1734889510638,4.11199499,182.68,182.61,16.19650924]
[1734889511134,0.9153,182.71,182.62,16.19650924]
[1734889511334,0.9153,182.71,182.63,16.19650924]
[1734889511542,0.9153,182.71,182.64,16.19650924]
[1734889512207,0.9153,182.76,182.67,16.19650924]
[1734889512616,0.9153,182.76,182.64,90.79650924]
[1734889513134,0.9153,182.76,182.66,16.19650924]
[1734889513443,20.0,182.74,182.66,16.19650924]
[1734889514157,20.0,182.74,182.65,16.19650924]
[1734889514353,20.0,182.74,182.64,90.79650924]
[1734889514526,20.0,182.74,182.64,74.6]
[1734889514917,20.0,182.74,182.62,16.19650924]
[1734889514918,20.0,182.7,182.61,16.19650924]
[1734889515461,20.0,182.7,182.59,88.2917]
[1734889515462,20.0,182.7,182.6,16.19650924]
[1734889516120,20.0,182.7,182.61,16.19650924]
[1734889517035,20.9153,182.7,182.61,16.19650924]
[1734889517238,20.9153,182.7,182.6,16.19650924]
[1734889517721,20.9153,182.7,182.62,16.19650924]
[1734889519064,20.9153,182.7,182.61,16.19650924]
[1734889520170,20.9153,182.7,182.6,16.19650924]
[1734889520351,20.9153,182.7,182.61,16.19650924]
[1734889521884,20.0,182.7,182.62,16.19650924]
[1734889522265,20.0,182.7,182.63,16.19650924]
[1734889522900,20.0,182.7,182.62,16.19650924]
[1734889525006,20.0,182.7,182.64,16.19650924]
[1734889525314,43.776884,182.74,182.64,16.19650924]
[1734889525783,23.776884,182.74,182.64,16.19650924]
[1734889526104,0.9153,182.75,182.64,16.19650924]
[1734889526312,0.9153,182.75,182.65,16.19650924]
[1734889527203,20.0,182.74,182.65,16.19650924]
[1734889527683,20.0,182.74,182.64,16.19650924]
[1734889528604,20.0,182.74,182.65,16.19650924]
[1734889529904,0.9153,182.75,182.65,16.19650924]
[1734889530094,0.9153,182.75,182.69,16.19650924]
[1734889530296,4.6569,182.77,182.7,16.19650924]
[1734889530683,4.6569,182.77,182.68,16.19650924]
[1734889531610,20.0,182.78,182.7,16.19650924]
[1734889532922,23.776884,182.77,182.67,90.79650924]
[1734889534714,23.776884,182.77,182.68,16.19650924]
[1734889537111,23.776884,182.77,182.69,16.19650924]
[1734889537925,23.776884,182.77,182.67,16.19650924]
[1734889539929,23.776884,182.77,182.66,16.19650924]
[1734889540519,23.776884,182.77,182.67,16.19650924]
[1734889540728,20.0,182.78,182.69,16.19650924]
[1734889541032,20.0,182.74,182.67,16.19650924]
[1734889543411,20.0,182.74,182.66,16.19650924]
[1734889545657,20.0,182.74,182.67,16.19650924]
[1734889547346,13.2242,182.8,182.68,16.19650924]
[1734889547534,23.776884,182.79,182.7,16.19650924]
[1734889547950,23.776884,182.79,182.69,16.19650924]
[1734889548959,23.776884,182.79,182.7,16.19650924]
[1734889551661,0.9153,182.8,182.74,16.19650924]
[1734889551951,5.02528581,182.84,182.76,16.19650924]
[1734889552538,0.9153,182.84,182.76,16.19650924]
[1734889552745,0.9153,182.84,182.77,16.19650924]
[1734889553041,0.9153,182.84,182.79,16.19650924]
[1734889553254,8.53574717,182.87,182.81,16.19650924]
[1734889553562,8.53574717,182.87,182.82,16.19650924]
[1734889554062,0.9153,182.89,182.82,16.19650924]
[1734889554241,0.9153,182.89,182.79,75.42029659]
[1734889554446,0.9153,182.89,182.83,16.19650924]
[1734889554744,8.53574717,182.92,182.86,16.19650924]
[1734889554943,0.9153,182.94,182.87,16.19650924]
[1734889555265,12.64265815,182.97,182.87,16.19650924]
[1734889555755,8.53574717,182.97,182.87,16.19650924]
[1734889556131,20.0,182.94,182.87,16.19650924]
[1734889556337,20.0,182.97,182.89,16.19650924]
[1734889556663,0.9153,182.99,182.89,16.19650924]
[1734889557462,23.776884,182.98,182.89,16.19650924]
[1734889557643,23.776884,182.98,182.84,16.19650924]
[1734889557848,36.073884,182.98,182.84,16.19650924]
[1734889558248,20.0,182.91,182.82,16.19650924]
[1734889558863,23.776884,182.9,182.82,16.19650924]
[1734889559164,20.0,182.87,182.79,16.19650924]
[1734889559458,20.0,182.87,182.77,16.19650924]
[1734889560260,20.0,182.87,182.76,74.6]
[1734889560261,20.0,182.87,182.78,25.88329497]
[1734889560460,23.776884,182.86,182.77,25.88329497]
[1734889560841,23.776884,182.86,182.78,25.88329497]
[1734889561042,23.776884,182.86,182.76,25.88329497]
[1734889561238,23.776884,182.82,182.7,76.2269]
[1734889561553,20.0,182.83,182.74,25.88329497]
[1734889561755,20.0,182.83,182.76,25.88329497]
[1734889562071,43.776884,182.86,182.77,25.88329497]
[1734889562368,43.776884,182.86,182.78,25.88329497]
[1734889562668,20.0,182.86,182.78,25.88329497]
[1734889562869,20.0,182.87,182.78,25.88329497]
[1734889564064,23.776884,182.86,182.77,25.88329497]
[1734889564271,23.776884,182.86,182.75,25.88329497]
[1734889564651,23.776884,182.82,182.73,25.88329497]
[1734889566676,23.776884,182.82,182.7,25.88329497]
[1734889566677,20.0,182.79,182.7,25.88329497]
[1734889566880,23.776884,182.78,182.7,25.88329497]
[1734889567373,23.776884,182.78,182.69,25.88329497]
[1734889568369,23.776884,182.78,182.68,25.88329497]
[1734889569174,23.776884,182.78,182.7,25.88329497]
[1734889570177,23.776884,182.78,182.69,25.88329497]
[1734889570386,23.776884,182.78,182.7,25.88329497]